Cogmind - Beta 14 @@@ ROGUE MODE // 2025.04.01 @ 07:37:49 Player: golanco Result: Destroyed by as-08173 with Assembled Heavy Rifle Performance ------------- Evolutions (1) 500 Regions Visited (3) 600 Robots Destroyed (54) 270 Value Destroyed (1063) 1063 Prototype IDs (5) 100 Alien Tech Used (0) 0 Bonus (39) 39 TOTAL SCORE: 2572 Bonus ------- Follower Combat Kills 39 Cogmind --------- Core Integrity 0/400 Matter 290/300 Energy 24/100 System Corruption 3% Temperature Hot (213) Movement Rolling (175) Ox5 Location -9/Mines Parts ------- > --- POWER (1) -------- (None) > --- PROPULSION (2) --- Compact Wheel > --- UTILITY (4) ------ Huge Storage Unit Signal Interpreter Light Armor Plating Medium Armor Plating > --- WEAPON (2) ------- Improved EM Shotgun > --- INVENTORY (25) --- Ion Engine Ion Engine Wheel Wheel Heat Sink Sensor Array Transport Network Coupler Light Armor Plating Heavy EM Pulse Gun Improved EM Shotgun Improved EM Shotgun Improved EM Shotgun Small Laser Light EM Pulse Cannon Light EM Pulse Cannon Advanced Beam Cannon Advanced Beam Cannon Advanced Beam Cannon Grenade Launcher Grenade Launcher Grenade Launcher Mini Grenade Launcher Peak State ------------ > --- POWER ------------ Light Nuclear Core > --- PROPULSION ------- Wheel Compact Wheel > --- UTILITY ---------- Huge Storage Unit Signal Interpreter Light Armor Plating Medium Armor Plating > --- WEAPON ----------- Improved EM Shotgun Improved EM Shotgun > --- INVENTORY -------- Ion Engine Ion Engine Wheel Wheel Heat Sink Sensor Array Transport Network Coupler Light Armor Plating Heavy EM Pulse Gun Improved EM Shotgun Improved EM Shotgun Improved EM Shotgun Improved EM Shotgun Small Laser Light EM Pulse Cannon Light EM Pulse Cannon Advanced Beam Cannon Advanced Beam Cannon Advanced Beam Cannon Grenade Launcher Grenade Launcher Grenade Launcher Mini Grenade Launcher [Rating: 20] Favorites ----------- Power Ion Engine Engine Ion Engine Power Core Light Nuclear Core Propulsion Light Treads Treads Light Treads Leg Aluminum Leg Wheel Compact Wheel Flight Unit Improved Flight Unit Utility Huge Storage Unit Device Sensor Array Storage Huge Storage Unit Processor Signal Interpreter Protection Light Armor Plating Weapon EM Pulse Gun Energy Gun EM Pulse Gun Energy Cannon Advanced Beam Cannon Ballistic Gun Light Assault Rifle Launcher Grenade Launcher Build | -11 -10 -9 -9 ------- Run | Yrd Mat Mat Min Slots Evolved 2 | . . 2 . Power . | . . . . Propulsion . | . . . . Utility 2 | . . 2 . Weapon . | . . . . Parts Attached 50 | 6 10 31 3 Power 7 | 1 1 4 1 Engine 5 | 1 . 4 . Core 2 | . 1 . 1 Reactor . | . . . . Propulsion 11 | 2 . 9 . Treads 2 | 2 . . . Leg 6 | . . 6 . Wheel 2 | . . 2 . Hover . | . . . . Flight 1 | . . 1 . Utility 15 | 1 4 9 1 Device 5 | . 2 3 . Storage 2 | 1 1 . . Processor 2 | . . 2 . Hackware . | . . . . Protection 6 | . 1 4 1 Artifact . | . . . . Weapon 17 | 2 5 9 1 Energy Gun 13 | 1 4 7 1 Energy Cannon 2 | . . 2 . Ballistic Gun 1 | 1 . . . Ballistic Cannon . | . . . . Launcher 1 | . 1 . . Special Weapon . | . . . . Impact Weapon . | . . . . Slashing Weapon . | . . . . Piercing Weapon . | . . . . Special Melee Weapon . | . . . . Unidentified Prototypes 3 | . . 3 . Parts Lost 26 | . 3 17 6 Power 5 | . . 3 2 Propulsion 5 | . 1 3 1 Utility 7 | . 1 5 1 Weapon 9 | . 1 6 2 Highest Loss Streak 7 | . 2 7 6 To Critical Strikes 1 | . . 1 . Average Slot Usage (%) 85 | . 89 79 91 Engine 7 | . 5 9 5 Core 4 | . 8 . 2 Treads 11 | . 19 . . Leg 3 | . . 10 . Wheel 2 | . . 4 19 Device 9 | . 11 6 5 Storage 12 | . 14 11 11 Processor 4 | . . 10 11 Protection 2 | . 1 5 15 Energy Gun 21 | . 23 17 20 Energy Cannon 1 | . . 2 . Ballistic Gun 2 | . 3 . . Peak Build Rating 20 | 6 10 18 20 Average Rating 9 | 4 8 10 17 On Entrance 8 | . 6 10 18 Naked Turns . | . . . . Heaviest Build 97 | 13 93 97 97 Greatest Support 40 | 40 40 26 26 Greatest Overweight (x) 30 | . 4 30 3 Average Overweight (x) 3 | . 2 5 3 Largest Inventory Capacity 25 | 8 25 25 25 Average Capacity 24 | 7 24 25 25 Most Carried 25 | 2 23 25 25 Average Carried 16 | 1 14 20 24 Final Capacity 25 | 8 25 25 25 Final Carried 25 | 2 23 25 22 Class Distribution -------------------- 80% | Mutant 19% | Scavenger-Mutant Dominant Class ---------------- Mutant | -10/Materials Mutant | -9/Materials Scavenger-Mutant | -9/Mines Resources | -11 -10 -9 -9 ----------- Run | Yrd Mat Mat Min Matter Collected 689 | 237 170 282 . Remotely . | . . . . Salvage Created 2183 | . 704 1440 39 Parts 129 | . 53 76 . Haulers Intercepted 5 | . 2 3 . Recyclers Shooed 1 | . 1 . . Parts Field Recycled . | . . . . Retrieved Matter . | . . . . Parts Self-Destructed . | . . . . Prevented . | . . . . Kills | -11 -10 -9 -9 ------- Run | Yrd Mat Mat Min Combat Hostiles Destroyed 29 | . 13 14 2 Guns 20 | . 11 7 2 Cannons 6 | . . 6 . AOE 2 | . 2 . . Classes Destroyed 11 | . 7 3 1 Worker 3 | . 1 2 . Builder 1 | . . 1 . Tunneler 3 | . 2 1 . Hauler 5 | . 2 3 . Recycler 7 | . 1 6 . Operator 1 | . . 1 . Watcher 7 | . 3 4 . Swarmer 7 | . 5 2 . Grunt 15 | . 8 7 . Sentry 5 | . . 5 . Assembled 2 | . . . 2 Best Kill Streak 5 | . 4 5 2 Combat Bots Only 3 | . 3 3 2 Max Kills in Single Turn 2 | . 2 2 1 Gunslinging . | . . . . Exploded 2 | . 2 . . Melee . | . . . . Uniques/NPCs Destroyed . | . . . . Combat | -11 -10 -9 -9 -------- Run | Yrd Mat Mat Min Hostile Shots Fired 281 | . 89 159 33 Missed 65 | . 21 38 6 Damage Taken 2592 | . 699 1391 502 Core 479 | . 72 311 96 Absorbed by Shields . | . . . . Core Remaining (%) 85 | 100 71 . . Volleys Fired 145 | . 60 76 9 Largest 2 | . 2 2 2 Hottest 113 | . 80 113 90 Shots Fired 257 | . 112 129 16 Gun 238 | . 110 112 16 Cannon 17 | . . 17 . Launcher 2 | . 2 . . Special . | . . . . Kinetic 31 | . 31 . . Thermal 53 | . 36 17 . Explosive 2 | . 2 . . Electromagnetic 171 | . 43 112 16 Robot Hit Streak 10 | . 9 10 6 Robot Miss Streak 9 | . 4 9 4 Penetration Max . | . . . . Secondary Targets 4 | . 2 1 1 Max Gunslinging Chain 1 | . 1 1 1 Shots Hit Robots 147 | . 59 77 11 Core Hits 87 | . 35 43 9 Critical Kills . | . . . . Critical Parts Destroyed . | . . . . Critical Strikes 4 | . 3 1 . Burn 2 | . 2 . . Corrupt 2 | . 1 1 . Melee Attacks . | . . . . Impact . | . . . . Slashing . | . . . . Piercing . | . . . . Sneak Attacks . | . . . . Combat Hostiles . | . . . . Follow-up Attacks . | . . . . Damage Inflicted 2537 | . 957 1418 162 Guns 2055 | . 815 1078 162 Cannons 203 | . . 203 . Explosions 279 | . 142 137 . Melee . | . . . . Ramming . | . . . . Kinetic 140 | . 140 . . Thermal 684 | . 344 340 . Explosive 114 | . 114 . . Electromagnetic 1599 | . 359 1078 162 Impact . | . . . . Slashing . | . . . . Piercing . | . . . . Highest Corruption 3 | . . 3 3 Average Corruption 2 | . . 2 3 Corruption Purged . | . . . . Corruption Blocked . | . . . . Effects 15 | . . 14 1 Message Errors 3 | . . 2 1 Matter Fused 4 | . . 4 . Energy Discharges 4 | . . 4 . Misfires 2 | . . 2 . Weapon Failures 2 | . . 2 . Overload Shots . | . . . . Overflow Damage . | . . . . Projectiles . | . . . . Explosions . | . . . . Melee . | . . . . Knockbacks . | . . . . Impact . | . . . . Kinetic . | . . . . Secondary . | . . . . Self-Inflicted Damage 74 | . 5 69 . Shots 3 | . 1 2 . Rammed . | . . . . Targets Rammed . | . . . . Kicked . | . . . . Crushed . | . . . . Highest Temperature 363 | . 363 331 213 Average Temperature 86 | . 85 86 100 Received Heat Transfer 633 | . 258 375 . Effects 8 | . 3 5 . Shutdowns 2 | . 1 1 . Energy Bleed 2 | . 1 1 . Interference 2 | . 1 1 . Short Circuit 2 | . . 2 . Siege Activations . | . . . . Robots Corrupted 2 | . . 2 . Combat Hostiles 1 | . . 1 . Parts Fried 9 | . 2 7 . Impact Corruptions . | . . . . Robots Melted . | . . . . Combat Hostiles . | . . . . Parts Melted 5 | . 5 . . Heat Transferred 1693 | . 1123 570 . Parts Sabotaged . | . . . . Parts Stolen . | . . . . Parts Stripped . | . . . . Power Chain Reactions 5 | . 1 4 . Alert | -11 -10 -9 -9 ------- Run | Yrd Mat Mat Min Peak Influence 248 | . 248 164 61 Initial 61 | . . 37 61 Average 48 | . 41 62 40 Maximum Alert Level 1 | . 1 . . Low Security (%) 97 | 100 95 100 100 Level 1 2 | . 4 . . Level 2 . | . . . . Level 3 . | . . . . Level 4 . | . . . . Level 5 . | . . . . High Security . | . . . . Max Security . | . . . . Squads Dispatched 4 | . 2 2 . Investigation 3 | . 2 1 . Extermination . | . . . . Reinforcement 1 | . . 1 . Assault . | . . . . Garrison . | . . . . Intercept . | . . . . Searches Triggered . | . . . . Construction Impeded . | . . . . Haulers Reinforced . | . . . . Active Scanning Responses . | . . . . Cargo Convoy Interrupts . | . . . . Stealth | -11 -10 -9 -9 --------- Run | Yrd Mat Mat Min Distress Signals 3 | . 2 1 . Communications Jammed . | . . . . Distress Signals . | . . . . Times Spotted 57 | . 20 26 11 Peak Tracking Total 8 | . 5 4 8 Tactical Retreats 2 | . . . 2 Traps | -11 -10 -9 -9 ------- Run | Yrd Mat Mat Min Traps Triggered 2 | . . 2 . Indirectly . | . . . . Trap Hack Attempts . | . . . . Triggered . | . . . . Disarmed . | . . . . Reprogrammed . | . . . . Reused . | . . . . Traps Extracted . | . . . . Installed . | . . . . Triggered . | . . . . Machines | -11 -10 -9 -9 ---------- Run | Yrd Mat Mat Min Machines Disabled 1 | . . . 1 Max in Single Turn 1 | . . . 1 Machines Repaired . | . . . . Machines Dismantled . | . . . . Machines Sabotaged . | . . . . Overloaded Fab Kills . | . . . . Hacking | -11 -10 -9 -9 --------- Run | Yrd Mat Mat Min Machines Accessed 9 | . 5 4 . Terminals 6 | . 4 2 . Fabricators . | . . . . Repair Stations . | . . . . Recycling Units 3 | . 1 2 . Scanalyzers . | . . . . Garrison Access . | . . . . Total Hacks 19 | . 8 11 . Successful 10 | . 5 5 . Failed 9 | . 3 6 . Catastrophic 1 | . . 1 . Database Lockouts . | . . . . Manual 2 | . . 2 . Terminals 14 | . 6 8 . Fabricators . | . . . . Repair Stations . | . . . . Recycling Units 5 | . 2 3 . Scanalyzers . | . . . . Garrison Access . | . . . . Terminal Hacks 7 | . 4 3 . Robot Analysis 1 | . . 1 . Prototype ID Bank 1 | . 1 . . Branch Access Points 2 | . 1 1 . Transport Status 1 | . 1 . . Hauler Manifests 2 | . 1 1 . Fabricator Hacks . | . . . . Repair Station Hacks . | . . . . Recycling Unit Hacks 2 | . 1 1 . Retrieve Components 2 | . 1 1 . Scanalyzer . | . . . . Garrison Access Hacks . | . . . . Unauthorized Hacks 1 | . . 1 . Terminals 1 | . . 1 . Botnet 1 | . . 1 . Fabricators . | . . . . Repair Stations . | . . . . Recycling Units . | . . . . Scanalyzers . | . . . . Garrison Access . | . . . . Data Cores Recovered . | . . . . Used . | . . . . Hacking Detections 6 | . 3 3 . Full Trace Events 1 | . . 1 . Feedback Events . | . . . . Feedback Blocked . | . . . . Robot Schematics Acquired . | . . . . Robots Built . | . . . . Authchips . | . . . . Time . | . . . . Total Robot Build Rating . | . . . . Part Schematics Acquired . | . . . . Parts Built . | . . . . Authchips . | . . . . Time . | . . . . Total Part Build Rating . | . . . . Parts Repaired . | . . . . Time . | . . . . Parts Recycled . | . . . . Recycled Matter . | . . . . Retrieved Matter . | . . . . Retrieved Components 13 | . 3 10 . Parts Scanalyzed . | . . . . Part Schematics Acquired . | . . . . Parts Damaged . | . . . . Bothacking | -11 -10 -9 -9 ------------ Run | Yrd Mat Mat Min Used RIF Installer . | . . . . Robots Hacked . | . . . . Non-combat . | . . . . Combat . | . . . . Robot Hacks Applied . | . . . . Relay Couplers Released . | . . . . Fabnet Peak Effective % . | . . . . Robots Rewired . | . . . . Allies Hacked . | . . . . Hacks Repelled . | . . . . Allies | -11 -10 -9 -9 -------- Run | Yrd Mat Mat Min Total Allies 2 | . . . 2 Largest Group 2 | . . . 2 Highest-Rated Group 50 | . . . 50 Highest-Rated Ally 31 | . . . 31 Total Orders . | . . . . Ally Attacks 4 | . . . 4 Total Damage 60 | . . . 60 Kills 1 | . . . 1 Allies Corrupted . | . . . . Allies Melted . | . . . . Intel | -11 -10 -9 -9 ------- Run | Yrd Mat Mat Min Robot Analysis Total 1 | . . 1 . Derelict Logs Recovered . | . . . . Drone Launches . | . . . . Drone Recoveries . | . . . . Exploration | -11 -10 -9 -9 ------------- Run | Yrd Mat Mat Min Turns Passed 3849 | 86 2183 1501 79 Spaces Moved 888 | 49 496 330 13 Core 17 | 2 . 15 . Treads 562 | 47 496 19 . Legs 138 | . . 138 . Wheels 171 | . . 158 13 Hover . | . . . . Flight . | . . . . Fastest Speed 50 | 50 160 135 135 Average Speed 365 | 155 399 353 135 Slowest Speed 1550 | 160 480 1550 135 Overloaded Moves . | . . . . Propulsion Burnouts . | . . . . Robots Hopped . | . . . . Cave-ins Triggered . | . . . . Exploration Rate (%) 32 | 3 79 40 9 Regions Visited 3 Branch Regions 1 Pre-discovered Areas . | . . . . Known Exits Taken 1 | . . 1 . Unknown Exits Taken 2 | 1 1 . . Scrap Searched . | . . . . Spaces Dug . | . . . . Terrain Destroyed 30 | . 22 8 . Melee . | . . . . Projectile . | . . . . AOE 30 | . 22 8 . Terrain Rammed . | . . . . Walls Destroyed . | . . . . Machines Disabled . | . . . . Actions | -11 -10 -9 -9 --------- Run | Yrd Mat Mat Min Total 1244 | 56 592 536 60 Wait 91 | . . 56 35 Move 885 | 48 495 329 13 Hop . | . . . . Pick Up 50 | 2 22 26 . Fast Attach 22 | 6 5 11 . Attach 18 | . 1 14 3 Detach 2 | . . 2 . Swap 11 | . 4 7 . Drop 20 | . 5 15 . Fire 145 | . 60 76 9 Melee . | . . . . Ram . | . . . . Kick . | . . . . Crush . | . . . . Escape Stasis . | . . . . Rewire . | . . . . Trap . | . . . . Miscellaneous . | . . . . Route ------- -11/Scrapyard -10/Materials (discovered 3 exits: *Mat x2 / *Min) -9/Materials (discovered 2 exits: *Min / Sto) -9/Mines History --------- Turn | Location | Event 6 | -11/Scrapyard | Discovered new exit (range 15) 87 | -11/Scrapyard | Entered Materials 316 | -10/Materials | Build established: Mutant 366 | -10/Materials | Discovered new exit (range 9) 440 | -10/Materials | Identified exit to Mines 624 | -10/Materials | Discovered new exit (range 8) 2100 | -10/Materials | Discovered new exit (range 16) 2270 | -10/Materials | Entered another Materials area 2270 | -9/Materials | Evolved 2 slots: Utility x2 2442 | -9/Materials | Lost 7 parts (1p1n2u3w) 3232 | -9/Materials | Build established: Scavenger-Mutant 3307 | -9/Materials | Core integrity fell below 50% 3384 | -9/Materials | Lost 4 parts (1p1n2u) 3429 | -9/Materials | Lost 3 parts (1n1u1w) 3650 | -9/Materials | Identified exit to Mines 3650 | -9/Materials | Identified exit to Storage 3771 | -9/Materials | Entered Mines 3772 | -9/Mines | Assembled infested the area 3815 | -9/Mines | Core integrity fell below 20% 3850 | -9/Mines | Destroyed by as-08173 with Assembled Heavy Rifle Last Messages --------------- K-01 Serf collects debris. D-53 Grenadier unfolds itself. Q3-N8H(z) destroyed. Sensor Array destroyed. K-01 Serf collects debris. D-53 Grenadier destroyed. The unstable cave ceiling collapses. Lgt. Ion Engine destroyed. P#OBX X|E0JZA JXSRG6S VZOGI, GPZL